bitfinex/quotes_ETHUSD_20240711
["timestamp","ask_amount","ask_price","bid_price","bid_amount"]
[1720676071369,0.55,3095.5,3095.0,2.3202]
[1720676071517,1.6923989,3095.3,3095.0,2.3202]
[1720676071839,1.69247087,3095.3,3095.0,2.3202]
[1720676072207,1.69247087,3095.3,3094.9,0.0604167]
[1720676072408,1.86171796,3095.2,3094.9,0.0604167]
[1720676072607,1.69247087,3095.2,3094.9,0.0604167]
[1720676072908,1.69247087,3095.1,3094.9,0.0604167]
[1720676073429,1.69247087,3095.2,3094.9,0.0604167]
[1720676074138,1.69247087,3095.3,3095.0,2.3001]
[1720676074351,1.69247087,3095.4,3095.0,2.3001]
[1720676074511,1.69247087,3095.5,3095.1,0.23605167]
[1720676074916,1.69264235,3095.6,3095.1,0.23605167]
[1720676075655,1.69264235,3095.5,3095.1,0.23605167]
[1720676076821,1.69264235,3095.4,3095.1,0.23605167]
[1720676077980,1.69264235,3095.4,3095.0,2.3001]
[1720676078264,3.0,3096.1,3095.0,2.3001]
[1720676078450,2.4448,3096.2,3095.0,2.3001]
[1720676078451,1.69388462,3095.4,3095.0,2.3001]
[1720676078627,1.69388462,3095.3,3095.0,2.3001]
[1720676078826,1.69388462,3095.3,3095.1,0.23605167]
[1720676080672,1.69388462,3095.2,3095.1,0.23605167]
[1720676081867,2.03266155,3095.5,3095.1,0.23605167]
[1720676081868,1.69581179,3095.3,3095.1,0.23605167]
[1720676082033,1.69581179,3095.2,3095.1,0.23605167]
[1720676083067,1.69581179,3095.3,3095.1,0.23605167]
[1720676083571,1.69581179,3095.2,3095.1,0.23605167]
[1720676085174,1.69655575,3095.2,3095.1,0.23605167]
[1720676085466,2.0358669,3095.4,3095.1,0.23605167]
[1720676088436,2.0358669,3095.4,3095.0,2.3001]
[1720676088437,0.55,3096.0,3095.0,2.3001]
[1720676088651,2.03654174,3095.3,3095.1,0.791]
[1720676089169,0.99159798,3095.2,3094.9,0.8514167]
[1720676089371,3.02833668,3095.1,3094.9,0.8514167]
[1720676089567,0.99159798,3095.0,3094.9,0.8514167]
[1720676090872,3.02833668,3095.0,3094.9,0.8514167]
[1720676091940,3.02886357,3095.0,3094.9,0.8514167]
[1720676093059,0.99174697,3095.0,3094.9,0.8514167]
[1720676093442,3.02886357,3095.0,3094.9,0.8514167]
[1720676093642,0.99174697,3095.0,3094.9,1.17695837]
[1720676094245,3.02886357,3095.0,3094.9,1.17695837]
[1720676094774,0.99174697,3095.0,3094.9,1.17695837]
[1720676095386,0.99172092,3095.0,3094.9,1.17695837]
[1720676095549,0.99172092,3095.0,3094.9,3.65775837]
[1720676095754,2.2562,3096.0,3094.9,3.65775837]
[1720676095755,1.69754002,3095.1,3094.9,3.65775837]
[1720676095968,2.03724214,3095.4,3095.1,2.4808]
[1720676096150,1.69746479,3095.2,3095.1,2.4808]
[1720676096344,2.03724214,3095.4,3095.1,3.2718]
[1720676096559,2.03724214,3095.4,3095.3,0.791]
[1720676096956,2.03724214,3095.5,3095.3,0.791]
[1720676097161,2.03724214,3095.5,3095.4,0.791]
[1720676097550,2.3767825,3095.7,3095.4,0.791]
[1720676098554,0.55,3096.1,3095.4,0.791]
[1720676098757,2.03710532,3095.5,3095.4,0.791]
[1720676098961,2.37662248,3095.7,3095.4,0.791]
[1720676099151,2.03709375,3095.5,3095.4,0.791]
[1720676099549,2.37662248,3095.7,3095.4,0.791]
[1720676099981,2.03717871,3095.5,3095.1,2.4808]
[1720676100185,1.69756198,3095.3,3095.2,0.24808]
[1720676100388,1.69756198,3095.3,3095.2,3.35888]
[1720676100884,1.69756198,3095.4,3095.2,1.03908]
[1720676101062,1.69756198,3095.4,3095.3,3.2861]
[1720676101421,1.69742884,3095.4,3095.3,3.2861]
[1720676101549,2.3333,3096.5,3095.3,3.2861]
[1720676101750,1.69740287,3095.5,3095.3,2.4951]
[1720676101949,1.69740287,3095.4,3095.3,2.4951]
[1720676102185,1.69740287,3095.4,3095.3,3.53561]
[1720676102989,1.69740287,3095.5,3095.3,3.53561]
[1720676103200,1.69740287,3095.5,3095.4,0.791]
[1720676103368,0.55,3096.4,3095.4,0.791]
[1720676103555,1.69715484,3095.5,3095.3,2.74461]
[1720676103757,1.69715484,3095.5,3095.4,1.065461]
[1720676103997,1.69715232,3095.5,3095.4,1.065461]
[1720676104683,3.35647047,3096.4,3095.4,1.065461]
[1720676104885,1.69705144,3095.5,3095.4,0.274461]
[1720676105221,1.69705144,3095.5,3095.4,1.065461]
[1720676105687,2.03646173,3095.7,3095.4,1.065461]
[1720676105989,2.03646173,3095.7,3095.6,0.791]
[1720676106502,4.76637202,3096.0,3095.6,0.791]
[1720676106688,2.37587202,3095.9,3095.6,0.791]
[1720676106994,2.37587202,3095.9,3095.4,0.791]
[1720676107295,2.0364538,3095.7,3095.6,0.791]
[1720676108098,2.03640133,3095.7,3095.6,0.791]
[1720676110798,4.64980155,3095.8,3095.0,9.6519326]
[1720676110988,2.03650782,3095.3,3095.0,7.3437326]
[1720676111322,2.03650782,3095.1,3095.0,8.1347326]
[1720676111523,2.0366878,3095.1,3095.0,8.1347326]
[1720676112691,2.37613577,3095.3,3095.0,8.1347326]
[1720676112929,2.03676888,3095.1,3095.0,8.1347326]
[1720676113090,2.37613577,3095.3,3095.0,8.1347326]
[1720676113995,2.03672611,3095.1,3095.0,8.1347326]
[1720676115216,2.03672611,3095.2,3095.0,8.1347326]
[1720676115529,2.03101411,3095.2,3095.1,0.791]
[1720676116900,2.37613577,3095.5,3095.1,0.791]
[1720676117140,0.55,3095.7,3095.3,0.791]
[1720676117141,2.37613577,3095.6,3095.3,0.791]
[1720676117640,0.33802303,3095.4,3095.3,0.791]
[1720676120004,0.33802303,3095.4,3095.3,1.10604]
[1720676120523,2.03499517,3095.4,3095.3,1.10604]
[1720676120718,2.03499517,3095.4,3095.3,3.53724]
[1720676120918,0.33802303,3095.4,3095.3,3.53724]
[1720676124218,2.03465187,3095.4,3095.3,3.53724]
[1720676124718,0.33802303,3095.4,3095.3,3.53724]
[1720676124958,2.03446575,3095.4,3095.3,3.53724]
[1720676125758,0.33802303,3095.4,3095.3,3.53724]
[1720676128327,0.33802303,3095.4,3095.0,2.3502]
[1720676128628,0.33802303,3095.4,3095.3,0.791]
[1720676128835,2.03416829,3095.4,3095.3,0.791]
[1720676129050,0.33802303,3095.4,3095.3,0.791]
[1720676129976,2.03416829,3095.4,3095.3,0.791]
[1720676130571,2.03423403,3095.4,3095.3,0.791]
[1720676131578,2.03414556,3095.4,3095.3,0.791]
[1720676131783,0.33802303,3095.4,3095.3,0.791]
[1720676131993,2.03414556,3095.4,3095.3,0.791]
[1720676132190,2.03414556,3095.4,3094.9,2.3237167]
[1720676132350,2.03414556,3095.4,3095.3,0.791]
[1720676134286,0.33802303,3095.4,3095.3,0.791]
[1720676134758,0.33802303,3095.4,3095.3,3.2895]
[1720676136487,1.69599431,3095.5,3095.3,3.2895]
[1720676136693,1.69599431,3095.6,3095.3,3.2895]
[1720676136897,1.69599431,3095.6,3095.5,0.791]
[1720676137066,2.274,3096.1,3095.5,0.791]
[1720676137067,2.03519317,3095.8,3095.5,0.791]
[1720676137995,1.69630317,3095.6,3095.5,0.791]
[1720676138201,2.274,3096.1,3095.5,0.791]
[1720676138368,2.03557624,3095.8,3095.7,0.791]
[1720676138557,0.55,3096.0,3095.7,0.791]
[1720676138901,2.03575354,3095.8,3095.7,0.791]
[1720676139415,2.9250458,3096.0,3095.7,0.791]
[1720676139617,2.03596899,3095.8,3095.7,0.791]
[1720676140699,2.9250458,3096.0,3095.7,0.791]
[1720676140874,2.92551591,3096.0,3095.7,0.791]
[1720676141607,0.55,3096.0,3095.7,0.791]
[1720676141789,2.03623088,3095.8,3095.7,0.791]
[1720676145123,5.11637877,3096.4,3095.7,0.791]
[1720676145422,2.03616128,3095.8,3095.7,0.791]
[1720676145782,2.03616128,3095.9,3095.7,0.791]
[1720676147482,2.03616128,3095.8,3095.7,0.791]
[1720676147689,2.37415215,3095.9,3095.7,0.791]
[1720676148510,0.33799087,3095.9,3095.7,0.791]
[1720676148724,2.03607016,3095.8,3095.7,0.791]
[1720676149217,0.33799087,3095.9,3095.7,0.791]
[1720676149428,0.33799087,3095.9,3095.5,0.791]
[1720676149584,2.03615516,3095.8,3095.5,0.791]
[1720676150286,2.03615516,3095.8,3095.7,0.791]
[1720676151886,2.03615377,3095.8,3095.7,0.791]
[1720676152921,2.37414464,3095.9,3095.7,3.2633]
[1720676153084,2.37414464,3095.9,3095.8,0.32633]
[1720676154222,0.33799087,3095.9,3095.8,0.32633]
[1720676154605,2.37414464,3095.9,3095.8,0.32633]
[1720676154996,0.33799087,3095.9,3095.8,0.32633]
[1720676155906,2.03583333,3096.1,3095.8,0.32633]
[1720676156094,2.03583333,3096.1,3096.0,0.791]
[1720676158616,2.03578032,3096.2,3096.0,0.791]
[1720676158813,2.03578032,3096.2,3096.1,0.791]
[1720676159926,0.33799208,3096.3,3096.1,0.791]
[1720676159927,2.3737724,3096.3,3096.1,0.791]
[1720676160100,2.3737724,3096.3,3096.2,2.3307]
[1720676160301,2.3737724,3096.3,3096.2,2.64287]
[1720676160638,0.33799208,3096.3,3096.2,2.64287]
[1720676161149,2.37507704,3096.7,3096.2,2.64287]
[1720676161150,2.03609284,3096.5,3096.2,2.64287]
[1720676161427,2.03609284,3096.6,3096.3,0.791]
[1720676162704,2.03503308,3096.6,3096.3,0.791]
[1720676163205,2.03503308,3096.6,3096.3,1.134387]
[1720676163523,0.33802404,3096.8,3096.3,0.343387]
[1720676163729,0.33802404,3096.8,3096.7,0.791]
[1720676164822,3.0,3097.6,3096.7,0.791]
[1720676164823,2.37383627,3097.2,3096.7,3.1759]
[1720676165136,0.33805026,3097.2,3097.0,0.791]
[1720676165607,0.33805026,3097.2,3097.1,2.3817]
[1720676166845,0.33805026,3097.2,3097.1,2.69897]
[1720676167011,1.69385168,3097.3,3097.1,2.69897]
[1720676167346,1.69385168,3097.4,3097.2,0.791]
[1720676167555,1.69385168,3097.4,3097.3,0.791]
[1720676167912,0.33801227,3097.7,3097.3,0.791]
[1720676168249,0.55,3097.6,3097.5,0.791]
[1720676168448,0.33801227,3097.7,3097.5,0.791]
[1720676168766,1.69189738,3097.6,3097.5,0.791]
[1720676169154,0.33801227,3097.7,3097.5,0.791]
[1720676169155,2.02990965,3097.7,3097.5,0.791]
[1720676169351,0.33801227,3097.7,3097.5,0.791]
[1720676169570,0.33801227,3097.7,3097.6,2.4221]
[1720676170953,0.33801227,3097.7,3097.6,2.74341]
[1720676171971,1.68970892,3098.2,3097.6,2.74341]
[1720676172187,0.55,3098.1,3098.0,0.791]
[1720676172346,0.33803888,3098.2,3098.0,0.791]
[1720676173577,0.33803888,3098.2,3097.4,7.3437326]
[1720676173779,0.59787277,3098.2,3097.7,0.791]
[1720676174075,0.59787277,3098.2,3097.9,0.791]
[1720676174076,0.55,3098.1,3097.9,0.791]
[1720676174518,0.55,3098.1,3097.4,7.3437326]
[1720676174803,0.55,3098.1,3097.6,0.791]
[1720676175598,2.47757404,3097.7,3096.7,0.791]
[1720676175903,1.68657404,3097.5,3096.7,0.791]
[1720676176106,0.63072894,3097.4,3096.7,0.791]
[1720676177365,0.63072894,3097.4,3096.9,0.791]
[1720676177805,0.08072853,3097.3,3096.9,0.791]
[1720676177976,0.55,3097.2,3096.9,0.791]
[1720676178593,0.55,3097.4,3096.4,9.2407326]
[1720676178802,0.63072888,3097.4,3096.5,4.16772326]
[1720676179163,0.63072888,3097.4,3096.5,3.0]
[1720676179362,2.4033,3097.3,3096.0,1.897]
[1720676179558,0.63074063,3097.2,3096.0,1.897]
[1720676179762,2.31746685,3097.2,3096.0,1.897]
[1720676179984,0.47207669,3097.1,3096.0,1.897]
[1720676180284,0.63074062,3097.0,3096.0,1.897]
[1720676180671,0.55,3097.0,3096.0,1.897]
[1720676180977,0.55,3097.0,3096.0,4.897]
[1720676181182,0.55,3097.2,3096.0,4.897]
[1720676181481,0.55,3097.3,3096.1,0.72513]
[1720676183378,2.23712708,3097.3,3096.1,0.72513]
[1720676184367,0.55,3097.3,3096.1,0.72513]
[1720676184719,1.68742311,3097.3,3096.1,0.72513]
[1720676184998,0.55,3097.2,3096.1,0.72513]
[1720676185201,0.55,3097.2,3096.2,0.562213]
[1720676185706,0.55,3097.3,3096.2,0.562213]
[1720676186074,1.68742311,3097.6,3096.4,1.897]
[1720676186281,1.76814746,3097.6,3096.4,4.897]
[1720676186503,2.09270786,3097.5,3096.4,4.897]
[1720676186662,1.76815509,3097.4,3096.4,4.897]
[1720676186862,1.68742311,3097.4,3096.4,4.897]
[1720676187295,1.68742311,3097.4,3096.3,2.265]
[1720676187490,2.23742311,3097.3,3096.3,5.265]
[1720676187765,0.22374231,3097.2,3096.4,3.0]
[1720676187974,0.55,3097.1,3096.3,2.265]
[1720676189598,0.55,3097.3,3096.3,2.265]
[1720676190430,2.23808065,3097.3,3096.3,2.265]
[1720676191103,0.55,3097.3,3096.3,2.265]
[1720676191303,0.55,3097.3,3096.4,2.4235]
[1720676192255,2.23854229,3097.3,3096.4,2.4235]
[1720676192550,0.55,3097.2,3096.4,2.4235]
[1720676196358,2.23947475,3097.2,3096.4,2.4235]
[1720676197156,2.23947475,3097.2,3096.4,1.897]
[1720676197157,4.02327475,3097.1,3096.4,1.897]
[1720676197341,1.68947475,3096.9,3096.2,3.0]
[1720676197537,0.55,3096.8,3096.1,3.0]
[1720676197853,0.55,3096.8,3096.2,0.73869]
[1720676198018,0.55,3096.9,3096.2,0.73869]
[1720676199438,0.55,3097.0,3096.2,0.73869]
[1720676199642,2.24069187,3097.0,3096.2,0.73869]
[1720676200631,2.24069187,3097.0,3096.8,0.79]
[1720676201272,0.55,3097.0,3096.8,0.79]
[1720676201468,1.69208989,3097.0,3096.8,0.79]
[1720676201622,0.55,3096.9,3096.8,0.79]
[1720676202027,2.24208989,3096.9,3096.8,0.79]
[1720676204232,0.55,3096.9,3096.8,0.79]
[1720676204553,0.55,3097.0,3096.8,0.79]
[1720676206541,2.58192945,3097.0,3096.8,0.79]
[1720676206866,0.55,3097.0,3096.8,0.79]
[1720676207269,2.58192945,3097.0,3096.8,0.79]
[1720676207763,0.55,3097.0,3096.8,0.79]
[1720676210540,1.6938599,3096.9,3096.8,0.79]
[1720676210747,0.55,3096.9,3096.8,0.79]
[1720676212338,1.69376975,3097.1,3096.8,0.79]
[1720676212539,1.69376975,3097.1,3097.0,0.79]
[1720676212776,2.24376975,3097.1,3097.0,0.79]
[1720676215050,0.55,3097.1,3097.0,0.79]
[1720676215261,0.55,3097.2,3097.0,0.79]
[1720676215476,0.55,3097.2,3096.8,0.79]
[1720676215651,1.6941226,3097.0,3096.8,0.79]
[1720676217141,1.6941226,3097.1,3096.8,0.79]
[1720676217344,1.6941226,3097.1,3097.0,0.79]
[1720676217570,0.55,3097.1,3097.0,0.79]
[1720676218078,0.55,3097.2,3097.0,0.79]
[1720676218649,1.6953889,3097.1,3097.0,0.79]
[1720676218954,0.55,3097.1,3097.0,0.79]
[1720676219374,2.03444149,3097.3,3097.0,0.79]
[1720676219375,1.54070351,3097.2,3097.0,0.79]
[1720676219675,0.99070351,3097.1,3097.0,0.79]
[1720676219880,1.54070351,3097.1,3097.0,0.79]
[1720676220383,1.54069562,3097.1,3097.0,1.11324]
[1720676220961,0.55,3097.1,3097.0,1.11324]
[1720676221157,1.54064913,3097.1,3097.0,1.11324]
[1720676223850,1.54066114,3097.1,3097.0,1.11324]
[1720676224459,0.55,3097.1,3097.0,1.11324]
[1720676224683,1.69670371,3097.3,3097.1,2.2552]
[1720676224864,7.44,3098.2,3097.2,1.126844]
[1720676224865,1.69670371,3097.4,3097.2,1.126844]
[1720676225049,1.69670371,3097.4,3097.3,0.79]
[1720676225247,1.69670371,3097.6,3097.3,0.79]
[1720676225451,1.69670371,3097.6,3097.5,0.79]
[1720676225951,2.24670371,3097.6,3097.5,0.79]
[1720676226803,2.24670371,3097.6,3097.5,3.125]
[1720676226988,0.55,3097.6,3097.5,3.4375]
[1720676227861,2.24488988,3097.6,3097.5,1.1025]
[1720676228187,2.24488988,3097.6,3097.5,0.79]
[1720676229561,2.24488988,3097.6,3097.2,2.790744]
[1720676229786,2.24488988,3097.5,3097.4,0.79]
[1720676229989,5.91503461,3097.5,3097.1,0.79]
[1720676230202,3.02443461,3097.4,3097.1,0.79]
[1720676230482,3.57443461,3097.3,3097.1,0.79]
[1720676230685,0.99056675,3097.2,3097.1,0.79]
[1720676230891,1.54056675,3097.2,3097.1,0.79]
[1720676231094,0.55,3097.2,3097.1,0.79]
[1720676231391,2.03368461,3097.3,3097.1,0.79]
[1720676231594,1.54074936,3097.2,3097.0,7.3437326]
[1720676231911,3.02443397,3097.1,3097.0,7.3437326]
[1720676232195,1.54074936,3097.1,3097.0,7.3437326]
[1720676233278,3.57460544,3097.1,3097.0,7.3437326]
[1720676234511,3.57479096,3097.1,3097.0,7.3437326]
[1720676235372,3.57479096,3097.1,3096.8,0.79]
[1720676235576,1.54086261,3097.0,3096.8,0.79]
[1720676235799,0.99086261,3096.9,3096.8,0.79]
[1720676235973,1.54086261,3096.9,3096.8,0.79]
[1720676237295,3.57479096,3096.9,3096.8,0.79]
[1720676237599,3.91282899,3096.9,3096.8,0.79]
[1720676237904,3.91294837,3096.9,3096.8,0.79]
[1720676238980,1.87896639,3096.9,3096.8,0.79]
[1720676239898,2.27026123,3096.9,3096.6,0.79]
[1720676240100,3.57491866,3096.8,3096.4,0.79]
[1720676240279,2.0339903,3096.6,3096.4,0.79]
[1720676240480,1.54092836,3096.5,3096.4,0.79]
[1720676241085,0.55,3096.5,3096.4,0.79]
[1720676241281,0.99111626,3096.5,3096.4,0.79]
[1720676241486,1.54111626,3096.5,3096.4,0.79]
[1720676241885,6.38546076,3096.5,3095.7,7.3437326]
[1720676242196,2.03380307,3096.3,3096.0,0.79]
[1720676242505,1.54111626,3096.2,3096.0,0.79]
[1720676242669,1.69448751,3096.1,3096.0,0.79]
[1720676242873,2.24448751,3096.1,3096.0,0.79]
[1720676244478,2.2437885,3096.1,3096.0,0.79]
[1720676244971,0.55,3096.1,3096.0,0.79]
[1720676245171,0.55,3096.2,3096.0,0.79]
[1720676245407,1.69349757,3096.1,3096.0,0.79]
[1720676245710,2.24349757,3096.1,3096.0,0.79]
[1720676247010,0.55,3096.1,3096.0,0.79]
[1720676247198,2.0325462,3096.3,3096.0,0.79]
[1720676247199,0.55,3096.2,3096.0,0.79]
[1720676247705,1.69267156,3096.1,3096.0,0.79]
[1720676247918,2.2426688,3096.1,3096.0,0.79]
[1720676248414,0.55,3096.1,3096.0,0.79]
[1720676248612,0.55,3096.2,3096.0,0.79]
[1720676248777,0.55,3096.3,3096.1,0.79]
[1720676249291,2.2426688,3096.3,3096.1,0.79]
[1720676249490,0.55,3096.3,3096.1,0.79]
[1720676249688,2.2426688,3096.3,3096.1,0.79]
[1720676249925,0.55,3096.3,3096.1,0.79]
[1720676250425,2.2426688,3096.3,3096.1,0.79]
[1720676251111,0.55,3096.3,3096.1,0.79]
[1720676251284,2.24192321,3096.3,3096.1,0.79]
[1720676251485,0.55,3096.3,3096.1,0.79]
[1720676252485,1.6916767,3096.2,3096.1,0.79]
[1720676252813,2.2416767,3096.2,3096.1,0.79]
[1720676253032,0.55,3096.2,3096.1,0.79]
[1720676253176,1.69148672,3096.2,3096.1,0.79]
[1720676253532,2.24148672,3096.2,3096.1,0.79]
[1720676253816,2.24130945,3096.2,3096.1,0.79]
[1720676254018,0.55,3096.2,3096.1,0.79]
[1720676254230,2.24130945,3096.2,3096.1,0.79]
[1720676254388,2.24109406,3096.2,3096.1,0.79]
[1720676254990,0.55,3096.2,3096.1,0.79]
[1720676255522,2.24109406,3096.2,3096.1,0.79]
[1720676256409,0.55,3096.2,3096.1,0.79]
[1720676258301,0.55,3096.2,3095.9,0.79]
[1720676258621,0.55,3096.1,3095.9,0.79]
[1720676258817,0.55,3096.2,3095.9,0.79]
[1720676259701,0.55,3096.2,3095.7,0.79]
[1720676259702,0.77404927,3096.2,3095.7,0.79]
[1720676259908,2.46454193,3096.2,3095.7,0.79]
[1720676260733,2.46454193,3096.2,3095.6,7.3437326]
[1720676261038,2.46454193,3096.2,3095.7,0.79]
[1720676261199,0.55,3096.2,3095.7,0.79]
[1720676261538,1.69017395,3096.2,3095.7,0.79]
[1720676261716,0.55,3096.1,3095.7,0.79]
[1720676267739,0.55,3096.1,3095.4,2.4026]
[1720676268058,0.55,3096.1,3095.7,0.79]
[1720676268340,2.66900532,3096.4,3095.7,0.79]
[1720676268341,1.68976596,3096.2,3095.7,0.79]
[1720676268541,0.55,3096.1,3095.9,0.79]
[1720676269141,0.55,3096.2,3095.9,0.79]
[1720676270452,2.23976596,3096.2,3095.9,0.79]
[1720676271564,2.2406483,3096.2,3095.9,0.79]
[1720676272225,1.6906483,3096.1,3095.9,0.79]
[1720676272431,0.55,3096.0,3095.9,0.79]
[1720676273253,0.55,3096.0,3095.2,2.4786]
[1720676273420,1.69214737,3095.9,3095.6,0.79]
[1720676274643,1.69214737,3095.8,3095.6,0.79]
[1720676275030,1.69291902,3095.8,3095.6,0.79]
[1720676276452,1.69291902,3095.7,3095.6,0.79]
[1720676278465,0.55,3096.1,3095.6,0.79]
[1720676278666,1.6949088,3095.7,3095.6,0.79]
[1720676279387,1.69518108,3095.7,3095.6,0.79]
[1720676279772,2.03389057,3095.9,3095.6,0.79]
[1720676280235,2.03465517,3095.9,3095.8,0.79]
[1720676280435,2.58465517,3096.1,3095.8,0.79]
[1720676280645,1.69533634,3095.9,3095.8,0.79]
[1720676280851,1.69533634,3095.9,3095.8,1.11486]
[1720676281064,3.0,3096.7,3095.8,1.11486]
[1720676281278,1.69538059,3095.9,3095.7,2.4586]
[1720676281481,1.69577646,3095.8,3095.7,2.4586]
[1720676281770,1.69577646,3095.8,3095.7,3.2486]
[1720676283242,2.0343655,3096.0,3095.7,3.2486]
[1720676283439,2.0343655,3096.0,3095.9,0.79]
[1720676283638,2.0343655,3096.1,3095.9,0.79]
[1720676284050,2.80594087,3096.6,3095.9,0.79]
[1720676284383,2.03605687,3096.0,3095.9,0.79]
[1720676284586,2.03662118,3096.1,3095.9,0.79]
[1720676284878,0.55,3096.5,3095.9,0.79]
[1720676284879,2.03654122,3096.3,3096.0,2.4375]
[1720676285085,2.03654122,3096.3,3096.2,0.79]
[1720676285387,2.92596476,3096.5,3096.2,0.79]
[1720676285553,2.92596476,3096.5,3096.0,2.4375]
[1720676285554,2.03717084,3096.3,3096.0,2.4375]
[1720676285765,2.03717084,3096.3,3096.2,0.79]
[1720676287089,2.03717084,3096.4,3096.2,0.79]
[1720676287385,2.03717084,3096.4,3096.3,0.79]
[1720676287560,2.58717084,3096.4,3096.3,0.79]
[1720676287758,2.03717084,3096.4,3096.3,0.79]
[1720676288096,2.03713236,3096.4,3096.3,0.79]
[1720676288388,2.37665442,3096.7,3096.3,0.79]
[1720676288389,2.03713236,3096.5,3096.3,0.79]
[1720676288599,2.03713236,3096.5,3096.4,0.79]
[1720676289253,2.03713236,3096.7,3096.4,0.79]
[1720676289455,2.37665442,3096.9,3096.6,0.79]
[1720676289657,2.37665442,3097.0,3096.8,0.79]
[1720676290989,0.55,3096.9,3096.8,0.79]
[1720676291293,0.55,3096.9,3096.6,0.79]
[1720676291450,2.03526317,3096.7,3095.9,2.4584]
[1720676291800,2.03526317,3096.4,3096.1,0.79]
[1720676291950,2.03526317,3096.3,3096.1,0.79]
[1720676292371,0.96424463,3096.7,3095.9,3.2484]
[1720676292372,2.03526317,3096.2,3095.9,3.2484]
[1720676292875,0.41424732,3096.7,3095.9,3.2484]
[1720676292876,1.69633061,3096.0,3095.9,3.2484]
[1720676293292,1.69633061,3096.1,3095.9,3.2484]
[1720676293599,1.69633061,3096.1,3096.0,0.79]
[1720676293800,1.69633061,3096.1,3096.0,1.11484]
[1720676294190,1.69619772,3096.1,3096.0,1.11484]
[1720676294377,1.69619772,3096.1,3096.0,0.79]
[1720676294589,0.84266544,3096.9,3096.0,0.79]
[1720676294786,1.69618574,3096.1,3095.9,2.4584]
[1720676295085,1.69618574,3096.1,3096.0,0.79]
[1720676296668,1.69618574,3096.2,3096.0,0.79]
[1720676296875,2.03542289,3096.4,3096.1,0.79]
[1720676298173,2.03534935,3096.3,3096.1,0.79]
[1720676298909,2.03534935,3096.4,3096.1,0.79]
[1720676299075,2.03534935,3096.4,3095.9,2.4584]
[1720676299076,2.03534935,3096.4,3096.3,0.79]
[1720676299438,2.03534935,3096.5,3096.3,0.79]
[1720676301389,0.84266544,3096.9,3096.3,0.79]
[1720676301596,2.03495982,3096.5,3096.3,0.79]
[1720676302089,0.84266544,3096.9,3096.3,0.79]
[1720676302090,2.03495982,3096.4,3096.3,0.79]
[1720676303429,0.31381654,3096.8,3096.3,0.79]
[1720676303430,2.37411979,3096.6,3096.3,0.79]
[1720676303987,0.55,3096.5,3096.1,0.79]
[1720676304192,2.03507428,3096.3,3096.1,0.79]
[1720676304460,0.55,3096.2,3096.1,0.79]
[1720676304810,0.55,3096.2,3095.9,0.79]
[1720676305034,2.03510095,3096.2,3095.9,0.79]
[1720676305322,2.03510095,3096.1,3095.9,0.79]
[1720676305522,0.55,3096.0,3095.9,0.79]
[1720676305997,0.55,3096.1,3095.9,0.79]
[1720676306409,2.03510095,3096.2,3095.9,0.79]
[1720676306618,2.03510095,3096.2,3096.1,0.79]
[1720676307633,2.37315405,3096.2,3096.1,0.79]
[1720676307993,0.3380531,3096.2,3096.1,0.79]
[1720676308412,2.37319716,3096.2,3096.1,0.79]
[1720676311208,1.12537282,3096.2,3095.9,0.79]
[1720676311414,2.03556063,3096.0,3095.9,0.79]
[1720676311640,2.03560958,3096.0,3095.9,0.79]
[1720676313948,0.55,3096.1,3095.7,7.3437326]
[1720676314254,2.03582322,3095.9,3095.7,7.3437326]
[1720676315649,2.03582322,3095.9,3095.6,0.79]
[1720676315948,2.03582322,3095.9,3095.8,0.79]
[1720676316129,2.03582322,3096.0,3095.8,0.79]
[1720676316648,2.58582322,3096.1,3095.8,0.79]
[1720676316849,2.58582322,3096.1,3096.0,0.79]
[1720676317150,2.58582322,3096.1,3096.0,3.274]
[1720676317151,2.03582322,3096.1,3096.0,3.274]
[1720676317312,0.3380531,3096.2,3096.0,3.6014]
[1720676317313,2.37387632,3096.2,3096.0,3.6014]
[1720676317518,0.3380531,3096.2,3096.0,3.6014]
[1720676319224,0.3380531,3096.2,3096.0,1.1174]
[1720676319525,5.09927151,3097.2,3096.1,2.2986]
[1720676319526,1.69616473,3096.5,3096.1,2.2986]
[1720676319727,1.69616473,3096.6,3096.4,0.79]
[1720676319933,1.69616473,3096.6,3096.5,0.79]
[1720676320235,1.69616473,3096.6,3096.5,3.186]
[1720676320440,1.69616473,3096.6,3096.5,3.5046]
[1720676320827,1.69616473,3096.7,3096.5,3.5046]
[1720676321174,1.69616473,3096.7,3096.6,0.79]
[1720676321841,1.69538913,3096.7,3096.6,0.79]
[1720676322560,2.03446696,3096.9,3096.6,0.79]
[1720676322924,5.21124978,3097.5,3096.6,0.79]
[1720676322925,1.69533723,3096.7,3096.6,0.79]
[1720676323327,1.69522534,3096.7,3096.6,0.79]
[1720676323563,1.69522534,3096.7,3096.6,1.1086]
[1720676325174,1.69513153,3096.7,3096.6,1.1086]
[1720676326473,1.69513153,3096.8,3096.6,1.1086]
[1720676326944,1.69513153,3096.8,3096.7,2.4959]
[1720676327144,1.69513153,3096.9,3096.7,2.4959]
[1720676327336,1.69513153,3096.9,3096.8,0.79]
[1720676328556,1.69447956,3097.0,3096.8,0.79]
[1720676328757,1.69447956,3097.0,3096.9,0.79]
[1720676328969,0.55,3097.4,3096.9,0.79]
[1720676328970,1.69435601,3097.1,3096.9,1.11859]
[1720676329169,1.69435601,3097.1,3097.0,0.79]
[1720676329339,1.69435601,3097.2,3097.0,0.79]